fUSD/lending_fUSD_20241110
["ID","MTS","AMOUNT","RATE_DAILY","PERIOD"]
[341861371,1731259933454,-798.14,0.000317,31]
[341861372,1731259933480,-798.14,0.000317,31]
[341861373,1731259933505,-798.14,0.000317,31]
[341861374,1731259933531,-798.14,0.000317,31]
[341861375,1731259933557,-798.14,0.000317,31]
[341861376,1731259933582,-798.14,0.000317,31]
[341861377,1731259933608,-798.14,0.000317,31]
[341861378,1731259933633,-798.14,0.000317,31]
[341861379,1731259933659,-798.14,0.000317,31]
[341861380,1731259933687,-798.14,0.000317,31]
[341861381,1731259933712,-798.14,0.000317,31]
[341861382,1731259933738,-798.14,0.000317,31]
[341861383,1731259933763,-798.14,0.000317,31]
[341861384,1731259933789,-500.0,0.00032,120]
[341861385,1731259933812,-77869.52554795,0.00032,30]
[341861386,1731259933837,-1800.0,0.00032,33]
[341861387,1731259933865,-152.69856076,0.00032,30]
[341861388,1731259933890,-150.0,0.00032,120]
[341861389,1731259933916,-150.0,0.000325,120]
[341861390,1731259933944,-27837.19,0.000325,120]
[341861391,1731259933968,-27837.19,0.000325,120]
[341861392,1731259933992,-27837.19,0.000325,120]
[341861393,1731259934016,-27837.19,0.000325,120]
[341861394,1731259934040,-27837.19,0.000325,120]
[341861395,1731259934066,-798.14,0.000326,31]
[341861396,1731259934092,-798.14,0.000326,31]
[341861397,1731259934117,-798.14,0.000326,31]
[341861398,1731259934144,-798.14,0.000326,31]
[341861399,1731259934170,-798.14,0.000326,31]
[341861400,1731259934198,-798.14,0.000326,31]
[341861401,1731259934224,-798.14,0.000326,31]
[341861402,1731259934251,-798.14,0.000326,31]
[341861403,1731259934278,-798.14,0.000326,31]
[341861404,1731259934303,-798.14,0.000326,31]
[341861405,1731259934330,-798.14,0.000326,31]
[341861406,1731259934359,-798.14,0.000326,31]
[341861407,1731259934390,-798.14,0.000326,31]
[341861408,1731259934420,-798.14,0.000326,31]
[341861409,1731259934447,-798.14,0.000326,31]
[341861410,1731259934475,-798.14,0.000326,31]
[341861411,1731259934503,-798.14,0.000326,31]
[341861412,1731259934531,-798.14,0.000326,31]
[341861413,1731259934558,-798.14,0.000326,31]
[341861414,1731259934585,-798.14,0.000326,31]
[341861415,1731259934803,-798.14,0.000326,31]
[341861416,1731259934831,-798.14,0.000326,31]
[341861417,1731259934869,-798.14,0.000326,31]
[341861418,1731259934901,-798.14,0.000326,31]
[341861419,1731259934928,-1110.99,0.00032629,120]
[341861420,1731259934953,-151.0,0.0003274,120]
[341861421,1731259934977,-2650.47196862,0.00032876,120]
[341861422,1731259935004,-214.70817661,0.00032877,60]
[341861423,1731259935029,-519.649973,0.00033,30]
[341861424,1731259935054,-515.26666085,0.00033,30]
[341861425,1731259935079,-500.0,0.00033,30]
[341861426,1731259935103,-500.0,0.00033,30]
[341861427,1731259935127,-500.0,0.00033,30]
[341861428,1731259935151,-500.0,0.00033,30]
[341861429,1731259935177,-512.22440177,0.00033,30]
[341861430,1731259935201,-500.0,0.00033,30]
[341861431,1731259935227,-500.0,0.00033,30]
[341861432,1731259935251,-500.0,0.00033,30]
[341861433,1731259935275,-500.0,0.00033,30]
[341861434,1731259935304,-500.0,0.00033,30]
[341861435,1731259935329,-500.0,0.00033,30]
[341861436,1731259935354,-500.0,0.00033,30]
[341861437,1731259935378,-500.0,0.00033,30]
[341861438,1731259935404,-521.02285221,0.00033,30]
[341861439,1731259935432,-500.0,0.00033,30]
[341861440,1731259935457,-844.34953931,0.00033,30]
[341861441,1731259935482,-500.0,0.00033,30]
[341861442,1731259935506,-500.0,0.00033,30]
[341861443,1731259935531,-500.0,0.00033,30]
[341861444,1731259935556,-500.0,0.00033,30]
[341861445,1731259935580,-500.0,0.00033,30]
[341861446,1731259935603,-500.0,0.00033,30]
[341861447,1731259935627,-536.91102314,0.00033,30]
[341861448,1731259935651,-500.0,0.00033,30]
[341861449,1731259935675,-500.0,0.00033,30]
[341861450,1731259935700,-500.0,0.00033,30]
[341861451,1731259935724,-528.5530429,0.00033,30]
[341861452,1731259935748,-500.0,0.00033,30]
[341861453,1731259935774,-500.0,0.00033,30]
[341861454,1731259935800,-500.0,0.00033,30]
[341861455,1731259935825,-500.0,0.00033,30]
[341861456,1731259935851,-500.0,0.00033,30]
[341861457,1731259935876,-500.0,0.00033,30]
[341861458,1731259935902,-500.0,0.00033,30]
[341861459,1731259935929,-500.0,0.00033,30]
[341861460,1731259935955,-500.0,0.00033,30]
[341861461,1731259935980,-585.14504724,0.00033,30]
[341861462,1731259936006,-500.0,0.00033,30]
[341861463,1731259936031,-500.0,0.00033,30]
[341861464,1731259936057,-500.0,0.00033,30]
[341861465,1731259936082,-500.0,0.00033,30]
[341861466,1731259936106,-500.0,0.00033,30]
[341861467,1731259936130,-850.36635651,0.00033,30]
[341861468,1731259936156,-700.0,0.00033,30]
[341861469,1731259936181,-700.0,0.00033,30]
[341861470,1731259936205,-700.0,0.00033,30]
[341861471,1731259936228,-700.0,0.00033,30]
[341861472,1731259936253,-700.0,0.00033,30]
[341861473,1731259936277,-700.0,0.00033,30]
[341861474,1731259936301,-700.0,0.00033,30]
[341861475,1731259936325,-700.0,0.00033,30]
[341861476,1731259936350,-700.0,0.00033,30]
[341861477,1731259936374,-700.0,0.00033,30]
[341861478,1731259936399,-700.0,0.00033,30]
[341861479,1731259936424,-700.0,0.00033,30]
[341861480,1731259936449,-742.53058169,0.00033,30]
[341861481,1731259936475,-1800.0,0.00033,34]
[341861482,1731259936499,-150.0,0.00033,120]
[341861483,1731259936534,-2000.0,0.00033134,60]
[341861484,1731259936561,-2381.23,0.00033151,120]
[341861485,1731259936588,-370.45,0.00033151,120]
[341861486,1731259936614,-2000.0,0.00033196,120]
[341861487,1731259936640,-155.733,0.0003332,120]
[341861488,1731259936667,-798.14,0.000335,31]
[341861489,1731259936694,-798.14,0.000335,31]
[341861490,1731259936720,-798.14,0.000335,31]
[341861491,1731259936747,-798.14,0.000335,31]
[341861492,1731259936773,-798.14,0.000335,31]
[341861493,1731259936801,-798.14,0.000335,31]
[341861494,1731259936828,-798.14,0.000335,31]
[341861495,1731259936856,-798.14,0.000335,31]
[341861496,1731259936882,-798.14,0.000335,31]
[341861497,1731259936908,-798.14,0.000335,31]
[341861498,1731259936936,-798.14,0.000335,31]
[341861499,1731259936963,-798.14,0.000335,31]
[341861500,1731259936989,-768.0,0.00033674,30]
[341861501,1731259937016,-2000.0,0.00033682,60]
[341861502,1731259937041,-1000.0,0.00033682,60]
[341861503,1731259937066,-2500.0,0.00033682,60]
[341861504,1731259937091,-500.0,0.00033682,60]
[341861505,1731259937118,-1527.81049429,0.000337,30]
[341861506,1731259937144,-2000.0,0.0003397,120]
[341861507,1731259937169,-1800.0,0.00034,35]
[341861508,1731259937197,-500.0,0.00034,120]
[341861509,1731259937223,-635.77661411,0.00034,30]
[341861510,1731259937249,-500.0,0.00034,30]
[341861511,1731259937273,-500.0,0.00034,30]
[341861512,1731259937301,-500.0,0.00034,30]
[341861513,1731259937326,-158.36212241,0.00034,30]
[341861514,1731259937350,-500.0,0.00034,30]
[341861515,1731259937376,-500.0,0.00034,30]
[341861516,1731259937401,-500.0,0.00034,30]
[341861517,1731259937427,-502.64681954,0.00034,30]
[341861518,1731259937670,-500.0,0.00034,30]
[341861519,1731259937699,-500.0,0.00034,30]
[341861520,1731259937723,-522.34732913,0.00034,30]
[341861521,1731259937747,-500.0,0.00034,30]
[341861522,1731259937771,-500.0,0.00034,30]
[341861523,1731259937796,-500.0,0.00034,30]
[341861524,1731259937819,-500.0,0.00034,30]
[341861525,1731259937844,-500.0,0.00034,30]
[341861526,1731259937871,-500.0,0.00034,30]
[341861527,1731259937896,-500.0,0.00034,30]
[341861528,1731259937922,-500.0,0.00034,30]
[341861529,1731259937954,-500.0,0.00034,30]
[341861530,1731259937979,-500.0,0.00034,30]
[341861531,1731259938003,-500.0,0.00034,30]
[341861532,1731259938028,-500.0,0.00034,30]
[341861533,1731259938053,-518.67269284,0.00034,30]
[341861534,1731259938078,-500.0,0.00034,30]
[341861535,1731259938103,-500.0,0.00034,30]
[341861536,1731259938128,-500.0,0.00034,30]
[341861537,1731259938152,-500.0,0.00034,30]
[341861538,1731259938176,-500.0,0.00034,30]
[341861539,1731259938205,-500.0,0.00034,30]
[341861540,1731259938230,-500.0,0.00034,30]
[341861541,1731259938256,-500.0,0.00034,30]
[341861542,1731259938280,-197.58280384,0.00034,30]
[341861543,1731259938305,-500.0,0.00034,30]
[341861544,1731259938329,-500.0,0.00034,30]
[341861545,1731259938354,-500.0,0.00034,30]
[341861546,1731259938379,-500.0,0.00034,30]
[341861547,1731259938403,-500.0,0.00034,30]
[341861548,1731259938436,-500.0,0.00034,30]
[341861549,1731259938462,-500.0,0.00034,30]
[341861550,1731259938501,-500.0,0.00034,30]
[341861551,1731259938527,-207.69305803,0.00034,30]
[341861552,1731259938553,-500.0,0.00034,30]
[341861553,1731259938578,-807.30556651,0.00034,30]
[341861554,1731259938605,-500.0,0.00034,30]
[341861555,1731259938631,-500.0,0.00034,30]
[341861556,1731259938656,-512.92330496,0.00034,30]
[341861557,1731259938684,-500.0,0.00034,30]
[341861558,1731259938710,-500.0,0.00034,30]
[341861559,1731259938735,-500.0,0.00034,30]
[341861560,1731259938766,-500.0,0.00034,30]
[341861561,1731259938791,-520.1801491,0.00034,30]
[341861562,1731259938817,-500.0,0.00034,30]
[341861563,1731259938844,-500.0,0.00034,30]
[341861564,1731259938870,-500.0,0.00034,30]
[341861565,1731259938897,-500.0,0.00034,30]
[341861566,1731259938923,-500.0,0.00034,30]
[341861567,1731259938953,-500.0,0.00034,30]
[341861568,1731259938979,-500.0,0.00034,30]
[341861569,1731259939005,-500.0,0.00034,30]
[341861570,1731259939033,-500.0,0.00034,30]
[341861571,1731259939059,-500.0,0.00034,30]
[341861572,1731259939090,-772.47249969,0.00034,30]
[341861573,1731259939118,-700.0,0.00034,30]
[341861574,1731259939146,-700.0,0.00034,30]
[341861575,1731259939174,-700.0,0.00034,30]
[341861576,1731259939206,-700.0,0.00034,30]
[341861577,1731259939234,-700.0,0.00034,30]
[341861578,1731259939261,-700.0,0.00034,30]
[341861579,1731259939289,-700.0,0.00034,30]
[341861580,1731259939316,-700.0,0.00034,30]
[341861581,1731259939342,-700.0,0.00034,30]
[341861582,1731259939369,-700.0,0.00034,30]
[341861583,1731259939395,-700.0,0.00034,30]
[341861584,1731259939422,-700.0,0.00034,30]
[341861585,1731259939450,-700.0,0.00034,30]
[341861586,1731259939477,-500.0,0.00034,30]
[341861587,1731259939503,-313.45927621,0.00034,30]
[341861588,1731259939530,-935.04240072,0.00034,30]
[341861589,1731259939556,-150.0,0.00034,120]
[341861590,1731259939582,-384.12108,0.00034,30]
[341861591,1731259939611,-500.0,0.000347,30]
[341861592,1731259939638,-2000.0,0.00034745,120]
[341861593,1731259939665,-2000.0,0.00034778,60]
[341861594,1731259939697,-1000.0,0.00034778,60]
[341861595,1731259939725,-2500.0,0.00034778,60]
[341861596,1731259939752,-500.0,0.00034778,60]
[341861597,1731259939779,-2899.69389736,0.000349,120]
[341861598,1731259939809,-50000.0,0.00035,35]
[341861599,1731259939838,-2312.28591232,0.00035,90]
[341861600,1731259939868,-450.0,0.00035,120]
[341861601,1731259939895,-9923.17191303,0.00035,100]
[341861602,1731259939926,-5758.4931119,0.00035,120]
[341861603,1731259939959,-885962.30437952,0.00035,120]
[341861604,1731259939988,-150.0,0.00035,120]
[341861605,1731259940016,-1800.0,0.00035,36]
[341861606,1731259940046,-5079.0,0.00035,45]
[341861607,1731259940075,-1110.99,0.00035213,120]
[341861608,1731259940102,-500.0,0.00035246,30]
[341861609,1731259940129,-500.0,0.00035246,30]
[341861610,1731259940155,-500.0,0.00035246,30]
[341861611,1731259940182,-500.0,0.00035246,30]
[341861612,1731259940206,-500.0,0.00035246,30]
[341861613,1731259940231,-500.0,0.00035246,30]
[341861614,1731259940256,-500.0,0.00035246,30]
[341861615,1731259940281,-500.0,0.00035246,30]
[341861616,1731259940307,-500.0,0.00035246,30]
[341861617,1731259940331,-500.0,0.00035246,30]
[341861618,1731259940356,-500.0,0.00035246,30]
[341861619,1731259940381,-500.0,0.00035246,30]
[341861620,1731259940665,-500.0,0.00035246,30]
[341861621,1731259940693,-500.0,0.00035246,30]
[341861622,1731259940719,-500.0,0.00035246,30]
[341861623,1731259940743,-500.0,0.00035246,30]
[341861624,1731259940767,-500.0,0.00035246,30]
[341861625,1731259940792,-500.0,0.00035246,30]
[341861626,1731259940816,-500.0,0.00035246,30]
[341861627,1731259940841,-500.0,0.00035246,30]
[341861628,1731259940868,-500.0,0.00035246,30]
[341861629,1731259940892,-500.0,0.00035246,30]
[341861630,1731259940915,-500.0,0.00035246,30]
[341861631,1731259940955,-500.0,0.00035246,30]
[341861632,1731259940984,-500.0,0.00035246,30]
[341861633,1731259941010,-500.0,0.00035246,30]
[341861634,1731259941036,-500.0,0.00035246,30]
[341861635,1731259941061,-500.0,0.00035246,30]
[341861636,1731259941087,-500.0,0.00035246,30]
[341861637,1731259941112,-500.0,0.00035246,30]
[341861638,1731259941137,-500.0,0.00035246,30]
[341861639,1731259941162,-500.0,0.00035246,30]
[341861640,1731259941189,-500.0,0.00035246,30]
[341861641,1731259941214,-500.0,0.00035246,30]
[341861642,1731259941239,-500.0,0.00035246,30]
[341861643,1731259941265,-500.0,0.00035246,30]
[341861644,1731259941290,-500.0,0.00035246,30]
[341861645,1731259941315,-500.0,0.00035246,30]
[341861646,1731259941342,-500.0,0.00035246,30]
[341861647,1731259941367,-500.0,0.00035246,30]
[341861648,1731259941392,-252.57837944,0.00035246,30]
[341861649,1731259941418,-151.0,0.00035479,120]
[341861650,1731259941446,-2000.0,0.0003552,120]
[341861651,1731259941476,-939.14183193,0.00035616,30]
[341861652,1731259941503,-543.98325849,0.00035642,30]
[341861653,1731259941529,-2000.0,0.00035874,60]
[341861654,1731259941556,-1000.0,0.00035874,60]
[341861655,1731259941581,-2500.0,0.00035874,60]
[341861656,1731259941607,-500.0,0.00035874,60]
[341861657,1731259941634,-50000.0,0.00036,36]
[341861658,1731259941660,-1800.0,0.00036,37]
[341861659,1731259941688,-500.0,0.00036,120]
[341861660,1731259941713,-1159.20793424,0.00036,120]
[341861661,1731259941738,-5000.0,0.00036,30]
[341861662,1731259941764,-150.0,0.00036,120]
[341861663,1731259941790,-250.0,0.00036,30]
[341861664,1731259941816,-2000.0,0.00036294,120]
[341861665,1731259941844,-1536576.88573885,0.000369,120]
[341861666,1731259941874,-2000.0,0.0003697,60]
[341861667,1731259941899,-1000.0,0.0003697,60]
[341861668,1731259941927,-2500.0,0.0003697,60]
[341861669,1731259941954,-500.0,0.0003697,60]
[341861670,1731259941984,-50000.0,0.00037,37]
[341861671,1731259942010,-1800.0,0.00037,38]
[341861672,1731259942035,-950.0,0.00037,120]
[341861673,1731259942061,-220834.01060655,0.00037,120]
[341861674,1731259942087,-80076.21051355,0.00037,30]
[341861675,1731259942112,-150.0,0.00037,120]
[341861676,1731259942137,-1075.0,0.00037042,30]
[341861677,1731259942163,-2000.0,0.00037069,120]
[341861678,1731259942190,-236.94871417,0.000372,103]
[341861679,1731259942216,-236.94871417,0.000372,103]
[341861680,1731259942242,-236.94871417,0.000372,103]
[341861681,1731259942268,-236.94871417,0.000372,103]
[341861682,1731259942294,-236.94871417,0.000372,103]
[341861683,1731259942321,-150.0,0.000374,120]
[341861684,1731259942347,-155.652,0.0003746,120]
[341861685,1731259942373,-150.0,0.000375,120]
[341861686,1731259942400,-150.0,0.00037511,120]
[341861687,1731259942428,-150.0,0.00037656,120]
[341861688,1731259942462,-150.0,0.00037659,120]
[341861689,1731259942491,-150.0,0.00037659,120]
[341861690,1731259942518,-150.0,0.00037659,120]
[341861691,1731259942544,-150.0,0.00037659,120]
[341861692,1731259942571,-5037.686,0.00037695,49]
[341861693,1731259942598,-150.0,0.00037735,120]
[341861694,1731259942626,-150.0,0.00037752,120]
[341861695,1731259942653,-150.0,0.00037784,120]
[341861696,1731259942685,-1110.99,0.00037797,120]
[341861697,1731259942714,-2000.0,0.00037843,120]
[341861698,1731259942742,-150.0,0.00037844,120]
[341861699,1731259942770,-150.0,0.00037907,120]
[341861700,1731259942799,-50000.0,0.00038,38]
[341861701,1731259942827,-1007.19,0.00038,120]
[341861702,1731259942855,-1800.0,0.00038,39]
[341861703,1731259942882,-8827.82,0.00038,120]
[341861704,1731259942910,-950.0,0.00038,120]
[341861705,1731259942940,-500.0,0.00038,120]
[341861706,1731259942967,-2308.83611282,0.00038,120]
[341861707,1731259942995,-2351.98577617,0.00038,120]
[341861708,1731259943022,-150.0,0.00038,120]
[341861709,1731259943049,-250.0,0.00038,30]
[341861710,1731259943077,-2000.0,0.00038066,60]
[341861711,1731259943104,-1000.0,0.00038066,60]
[341861712,1731259943131,-2500.0,0.00038066,60]
[341861713,1731259943158,-608.79594932,0.00038066,60]
[341861714,1731259943185,-150.0,0.00038122,120]
[341861715,1731259943212,-151.0,0.00038219,120]
[341861716,1731259943238,-150.0,0.00038263,120]
[341861717,1731259943265,-150.0,0.0003831,120]
[341861718,1731259943292,-150.0,0.00038344,120]
[341861719,1731259943319,-150.0,0.00038379,120]
[341861720,1731259943346,-6421.39257808,0.000384,33]
[341861721,1731259943373,-150.0,0.00038404,120]
[341861722,1731259943567,-150.0,0.00038496,120]
[341861723,1731259943630,-2000.0,0.00038618,120]
[341861724,1731259943657,-150.0,0.00038645,120]
[341861725,1731259943687,-150.0,0.00038702,120]
[341861726,1731259943716,-1001.02,0.00038795,32]
[341861727,1731259943745,-4688.998,0.000388,60]
[341861728,1731259943774,-150.0,0.00038805,120]
[341861729,1731259943802,-150.0,0.00038813,120]
[341861730,1731259943831,-150.0,0.00038855,120]
[341861731,1731259943861,-3636.31268579,0.0003888,90]
[341861732,1731259943891,-1011.9900545,0.00038904,90]
[341861733,1731259943925,-411.10531415,0.0003899,30]
[341861734,1731259943960,-50000.0,0.00039,39]
[341861735,1731259943990,-2013.83984306,0.00039,30]
[341861736,1731259944020,-850.0,0.00039,120]
[341861737,1731259944053,-273317.06009905,0.00039,30]
[341861738,1731259944084,-633.80123168,0.00039,120]
[341861739,1731259944114,-10000.0,0.00039,120]
[341861740,1731259944144,-3000.0,0.00039,118]
[341861741,1731259944174,-2166.2413284,0.00039,120]
[341861742,1731259944206,-35208.0,0.00039,40]
[341861743,1731259944235,-81705.9493359,0.00039,120]
[341861744,1731259944263,-260.92,0.00039,120]
[341861745,1731259944291,-150.0,0.00039,120]
[341861746,1731259944319,-1800.0,0.00039,40]
[341861747,1731259944347,-150.0,0.00039067,120]
[341861748,1731259944376,-150.0,0.00039129,120]
[341861749,1731259944404,-150.0,0.00039158,120]
[341861750,1731259944459,-2000.0,0.00039162,60]
[341861751,1731259944487,-500.0,0.00039162,30]
[341861752,1731259944518,-500.0,0.00039162,30]
[341861753,1731259944548,-500.0,0.00039162,30]
[341861754,1731259944580,-500.0,0.00039162,30]
[341861755,1731259944610,-500.0,0.00039162,30]
[341861756,1731259944640,-500.0,0.00039162,30]
[341861757,1731259944670,-500.0,0.00039162,30]
[341861758,1731259944702,-500.0,0.00039162,30]
[341861759,1731259944729,-500.0,0.00039162,30]
[341861760,1731259944756,-500.0,0.00039162,30]
[341861761,1731259944784,-500.0,0.00039162,30]
[341861762,1731259944812,-1000.0,0.00039162,60]
[341861763,1731259944839,-2500.0,0.00039162,60]
[341861764,1731259945079,-150.0,0.00039241,120]
[341861765,1731259945108,-100800.0,0.000393,60]
[341861766,1731259945137,-1334.88,0.00039305,30]
[341861767,1731259945165,-1334.88,0.00039305,30]
[341861768,1731259945192,-1334.88,0.00039305,30]
[341861769,1731259945221,-1334.88,0.00039305,30]
[341861770,1731259945249,-2000.0,0.00039393,120]
[341861771,1731259945277,-575.97354926,0.000394,30]
[341861772,1731259945305,-500.0,0.000394,120]
[341861773,1731259945333,-250000.0,0.000394,120]
[341861774,1731259945360,-4300.0,0.000395,120]
[341861775,1731259945388,-317.06,0.000395,37]
[341861776,1731259945416,-1334.88,0.00039579,30]
[341861777,1731259945442,-1334.88,0.00039579,30]
[341861778,1731259945471,-150.0,0.0003959,120]
[341861779,1731259945499,-150.0,0.00039656,120]
[341861780,1731259945529,-500.0,0.00039749,30]
[341861781,1731259945559,-150.0,0.00039763,120]
[341861782,1731259945588,-586176.56856981,0.000398,120]
[341861783,1731259954667,-500.0,0.00034778,60]
[341861784,1731259954700,-500.0,0.00035326,60]
[341861785,1731259954766,-2703.66,0.00039305,30]
[341861786,1731259954794,-2703.66,0.00039305,30]
[341861787,1731259954825,-2703.66,0.00039305,30]
[341861788,1731259954861,-2703.66,0.00039305,30]
[341861789,1731259954888,-2703.66,0.00039579,30]
[341861790,1731259954916,-2703.66,0.00039579,30]
[341861791,1731259954944,-2836077.19129112,0.000398,120]
[341861792,1731259954972,-150.0,0.00039841,120]
[341861793,1731259955000,-2703.66,0.00039852,30]
[341861794,1731259955026,-2703.66,0.00039852,30]
[341861795,1731259955053,-150.0,0.00039874,120]
[341861796,1731259955079,-416.0,0.00039886,60]
[341861797,1731259955106,-10411.0999348,0.000399,120]
[341861798,1731259955131,-7767.112747,0.000399,120]
[341861799,1731259955157,-53647.6336348,0.000399,30]
[341861800,1731259955185,-150.0,0.00039933,120]
[341861801,1731259955212,-450.0,0.0003997,30]
[341861802,1731259955239,-450.0,0.0003997,30]
[341861803,1731259955265,-450.0,0.0003998,30]
[341861804,1731259955292,-450.0,0.0003998,30]
[341861805,1731259955319,-450.0,0.0003998,30]
[341861806,1731259955345,-456.69,0.0003998,30]
[341861807,1731259955373,-150.0,0.00039984,120]
[341861808,1731259955400,-416.0,0.00039986,60]
[341861809,1731259955426,-450.0,0.0003999,30]
[341861810,1731259955452,-450.0,0.0003999,30]
[341861811,1731259955479,-450.0,0.0003999,30]
[341861812,1731259955505,-450.0,0.0003999,30]
[341861813,1731259955531,-3654.86057688,0.00039999,120]
[341861814,1731259955560,-50000.0,0.0004,40]
[341861815,1731259955589,-50000.0,0.0004,30]
[341861816,1731259955618,-1303146.42547823,0.0004,30]
[341861817,1731259955644,-750.0,0.0004,120]
[341861818,1731259955671,-2022.14460374,0.0004,30]
[341861819,1731259955698,-60000.0,0.0004,30]
[341861820,1731259955724,-500.0,0.0004,120]
[341861821,1731259955751,-3000.0,0.0004,120]
[341861822,1731259955777,-477.12749073,0.0004,30]
[341861823,1731259955804,-3343.89515433,0.0004,30]
[341861824,1731259955831,-1502.42625744,0.0004,30]
[341861825,1731259955860,-2329.95329271,0.0004,120]
[341861826,1731259955887,-1180.0465449,0.0004,120]
[341861827,1731259955914,-473.52042173,0.0004,120]
[341861828,1731259955943,-502.99216916,0.0004,30]
[341861829,1731259955975,-658.92427008,0.0004,120]
[341861830,1731259956005,-1875.08175259,0.0004,120]
[341861831,1731259956034,-1000.0,0.0004,120]
[341861832,1731259956062,-194.0,0.0004,120]
[341861833,1731259956089,-2000.0,0.0004,120]
[341861834,1731259956116,-2000.0,0.0004,120]
[341861835,1731259956143,-245.0,0.0004,120]
[341861836,1731259956169,-8157.65509779,0.0004,120]
[341861837,1731259956197,-11062.39,0.0004,30]
[341861838,1731259956224,-1388.94,0.0004,30]
[341861839,1731259956251,-1000.0,0.0004,30]
[341861840,1731259956278,-200.0,0.0004,120]
[341861841,1731259956305,-5000.0,0.0004,30]
[341861842,1731259956333,-3000.0,0.0004,60]
[341861843,1731259956363,-815.26561695,0.0004,120]
[341861844,1731259956391,-2000.0,0.0004,120]
[341861845,1731259956418,-300000.0,0.0004,30]
[341861846,1731259956444,-1536.24,0.0004,30]
[341861847,1731259956471,-1339.65157794,0.0004,30]
[341861848,1731259956497,-206.41257231,0.0004,30]
[341861849,1731259956524,-301.22686213,0.0004,30]
[341861850,1731259956551,-191.57996303,0.0004,30]
[341861851,1731259956578,-1034.23349016,0.0004,30]
[341861852,1731259956605,-1063.49429275,0.0004,32]
[341861853,1731259956632,-3044.0,0.0004,120]
[341861854,1731259956658,-2000.0,0.0004,120]
[341861855,1731259956684,-2000.0,0.0004,120]
[341861856,1731259956712,-2473.0,0.0004,120]
[341861857,1731259956737,-2000.0,0.0004,120]
[341861858,1731259956763,-10000.0,0.0004,120]
[341861859,1731259956789,-500.0,0.0004,120]
[341861860,1731259956816,-1008.4,0.0004,120]
[341861861,1731259956842,-226.19,0.0004,30]
[341861862,1731259956874,-200.0,0.0004,120]
[341861863,1731259956905,-5946.1918697,0.0004,120]
[341861864,1731259956935,-900.0,0.0004,41]
[341861865,1731259956963,-2732.42,0.0004,32]
[341861866,1731259956997,-5190.99539385,0.0004,30]
[341861867,1731259957030,-1150.69019158,0.0004,30]
[341861868,1731259957064,-195003.61745157,0.0004,30]
[341861869,1731259962268,-500.0,0.00035874,60]
[341861870,1731259962305,-500.0,0.00036422,60]